[Event "Titled Tuesday Blitz March 28 Late 2023"]
[White "Fressinet, Laurent"]
[Black "Molenda, Marcin"]
[WhiteFideId "608742"]
[BlackFideId "1173065"]
[WhiteElo "2633"]
[BlackElo "2286"]
[Result "1-0"]
[Round "01"]
[TimeControl "180+2"]
[Date "2023.03.28"]
[WhiteClock "0:00:14"]
[BlackClock "0:00:59"]

1. d4 {[%clk 0:03:00]}  Nf6 {[%clk 0:02:59]} 2. Nf3 {[%clk 0:03:00]}  g6 {[%clk 0:02:57]} 3. Bg5 {[%clk 0:02:59]}  Bg7 {[%clk 0:02:58]} 4. e3 {[%clk 0:02:59]}  O-O {[%clk 0:02:58]} 5. Be2 {[%clk 0:02:55]}  h6 {[%clk 0:02:52]} 6. Bh4 {[%clk 0:02:54]}  d6 {[%clk 0:02:52]} 7. O-O {[%clk 0:02:53]}  g5 {[%clk 0:02:52]} 8. Bg3 {[%clk 0:02:53]}  Nh5 {[%clk 0:02:53]} 9. c4 {[%clk 0:02:52]}  b6 {[%clk 0:02:49]} 10. Nc3 {[%clk 0:02:49]}  Bb7 {[%clk 0:02:49]} 11. Nd2 {[%clk 0:02:49]}  Nxg3 {[%clk 0:02:49]} 12. hxg3 {[%clk 0:02:50]}  e6 {[%clk 0:02:48]} 13. Bf3 {[%clk 0:02:49]}  c6 {[%clk 0:02:47]} 14. Rc1 {[%clk 0:02:44]}  Nd7 {[%clk 0:02:47]} 15. Nce4 {[%clk 0:02:31]}  Qe7 {[%clk 0:02:47]} 16. Qb3 {[%clk 0:02:28]}  f5 {[%clk 0:02:39]} 17. Nc3 {[%clk 0:02:28]}  Kh8 {[%clk 0:02:36]} 18. Rfd1 {[%clk 0:02:19]}  e5 {[%clk 0:02:37]} 19. dxe5 {[%clk 0:02:14]}  dxe5 {[%clk 0:02:29]} 20. Qc2 {[%clk 0:02:00]}  e4 {[%clk 0:02:26]} 21. Be2 {[%clk 0:01:58]}  Rae8 {[%clk 0:02:22]} 22. a3 {[%clk 0:01:55]}  Ne5 {[%clk 0:02:08]} 23. b4 {[%clk 0:01:47]}  Bc8 {[%clk 0:02:00]} 24. b5 {[%clk 0:01:44]}  c5 {[%clk 0:01:57]} 25. Nd5 {[%clk 0:01:43]}  Qf7 {[%clk 0:01:57]} 26. a4 {[%clk 0:01:40]}  Bb7 {[%clk 0:01:54]} 27. Nb1 {[%clk 0:01:34]}  f4 {[%clk 0:01:53]} 28. exf4 {[%clk 0:01:23]}  Bxd5 {[%clk 0:01:48]} 29. cxd5 {[%clk 0:01:10]}  gxf4 {[%clk 0:01:47]} 30. gxf4 {[%clk 0:00:39]}  Qxf4 {[%clk 0:01:44]} 31. Rf1 {[%clk 0:00:34]}  Nf7 {[%clk 0:01:28]} 32. Bh5 {[%clk 0:00:31]}  Be5 {[%clk 0:01:23]} 33. g3 {[%clk 0:00:31]}  Qg5 {[%clk 0:01:23]} 34. Bxf7 {[%clk 0:00:29]}  Rxf7 {[%clk 0:01:23]} 35. Qxe4 {[%clk 0:00:27]}  Rxf2 {[%clk 0:01:16]} 36. Rxf2 {[%clk 0:00:25]}  Qxc1+ {[%clk 0:01:06]} 37. Kg2 {[%clk 0:00:24]}  Rg8 {[%clk 0:01:05]} 38. Qxe5+ {[%clk 0:00:23]}  Rg7 {[%clk 0:01:03]} 39. Rf8+ {[%clk 0:00:22]}  Kh7 {[%clk 0:01:03]} 40. Qe4+ {[%clk 0:00:15]}  Rg6 {[%clk 0:01:01]} 41. Rf7+ {[%clk 0:00:15]}  Kh8 {[%clk 0:01:00]} 42. Qe8+ {[%clk 0:00:14]}  Rg8 {[%clk 0:00:59]} 43. Qe5+ {[%clk 0:00:14]} 1-0


[Site "https://www.chess.com"]

[Event "Titled Tuesday Blitz March 28 Late 2023"]
[White "Fernandez Garcia, Gumersindo"]
[Black "Babazada, Khazar"]
[WhiteFideId "24516740"]
[BlackFideId "13413554"]
[WhiteElo "2093"]
[BlackElo "2364"]
[Result "0-1"]
[Round "01"]
[TimeControl "180+2"]
[Date "2023.03.28"]
[WhiteClock "0:00:03"]
[BlackClock "0:00:07"]

1. d4 {[%clk 0:02:54]}  Nf6 {[%clk 0:02:59]} 2. c4 {[%clk 0:02:53]}  e6 {[%clk 0:02:56]} 3. Nf3 {[%clk 0:02:53]}  d5 {[%clk 0:02:56]} 4. g3 {[%clk 0:02:53]}  dxc4 {[%clk 0:02:52]} 5. Bg2 {[%clk 0:02:52]}  Be7 {[%clk 0:02:46]} 6. O-O {[%clk 0:02:44]}  O-O {[%clk 0:02:46]} 7. Nbd2 {[%clk 0:02:44]}  b5 {[%clk 0:02:40]} 8. a4 {[%clk 0:02:41]}  c6 {[%clk 0:02:40]} 9. Qc2 {[%clk 0:02:33]}  Nd5 {[%clk 0:02:34]} 10. e4 {[%clk 0:02:26]}  Nb4 {[%clk 0:02:34]} 11. Qb1 {[%clk 0:02:26]}  Bb7 {[%clk 0:02:32]} 12. Rd1 {[%clk 0:02:19]}  Nd7 {[%clk 0:02:30]} 13. Nf1 {[%clk 0:02:16]}  a6 {[%clk 0:02:24]} 14. Ne3 {[%clk 0:02:09]}  Qb6 {[%clk 0:02:19]} 15. Bd2 {[%clk 0:02:03]}  c5 {[%clk 0:02:09]} 16. d5 {[%clk 0:01:56]}  exd5 {[%clk 0:02:02]} 17. Bxb4 {[%clk 0:01:54]}  cxb4 {[%clk 0:02:02]} 18. Nxd5 {[%clk 0:01:54]}  Bxd5 {[%clk 0:02:02]} 19. exd5 {[%clk 0:01:54]}  Bc5 {[%clk 0:02:00]} 20. Qc2 {[%clk 0:01:50]}  Rfe8 {[%clk 0:01:58]} 21. axb5 {[%clk 0:01:36]}  axb5 {[%clk 0:01:59]} 22. Rxa8 {[%clk 0:01:26]}  Rxa8 {[%clk 0:01:59]} 23. Ng5 {[%clk 0:01:27]}  Nf6 {[%clk 0:01:59]} 24. Ne4 {[%clk 0:01:17]}  Nxe4 {[%clk 0:01:57]} 25. Qxe4 {[%clk 0:01:15]}  Rd8 {[%clk 0:01:49]} 26. Qe2 {[%clk 0:01:00]}  b3 {[%clk 0:01:45]} 27. Re1 {[%clk 0:00:55]}  g6 {[%clk 0:01:45]} 28. Rd1 {[%clk 0:00:50]}  Bd4 {[%clk 0:01:42]} 29. h4 {[%clk 0:00:48]}  Qf6 {[%clk 0:01:42]} 30. h5 {[%clk 0:00:44]}  Bxb2 {[%clk 0:01:39]} 31. d6 {[%clk 0:00:39]}  Bd4 {[%clk 0:01:34]} 32. d7 {[%clk 0:00:37]}  Kf8 {[%clk 0:01:28]} 33. Re1 {[%clk 0:00:26]}  Rxd7 {[%clk 0:01:17]} 34. Qe8+ {[%clk 0:00:26]}  Kg7 {[%clk 0:01:17]} 35. Rf1 {[%clk 0:00:21]}  Rd8 {[%clk 0:01:15]} 36. Qxb5 {[%clk 0:00:21]}  b2 {[%clk 0:01:14]} 37. Qxc4 {[%clk 0:00:20]}  Qxf2+ {[%clk 0:01:14]} 38. Kh2 {[%clk 0:00:17]}  b1=Q {[%clk 0:00:17]} 39. Rxb1 {[%clk 0:00:13]}  Be5 {[%clk 0:00:18]} 40. Qg4 {[%clk 0:00:12]}  Rd3 {[%clk 0:00:16]} 41. h6+ {[%clk 0:00:09]}  Kxh6 {[%clk 0:00:15]} 42. Rf1 {[%clk 0:00:02]}  Qxg3+ {[%clk 0:00:13]} 43. Qxg3 {[%clk 0:00:02]}  Bxg3+ {[%clk 0:00:13]} 44. Kh1 {[%clk 0:00:03]}  f5 {[%clk 0:00:14]} 45. Bf3 {[%clk 0:00:02]}  Kg5 {[%clk 0:00:13]} 46. Kg2 {[%clk 0:00:03]}  Bf4 {[%clk 0:00:10]} 47. Rb1 {[%clk 0:00:04]}  h5 {[%clk 0:00:09]} 48. Rb5 {[%clk 0:00:03]}  Rd2+ {[%clk 0:00:10]} 49. Kh1 {[%clk 0:00:03]}  h4 {[%clk 0:00:10]} 50. Rb1 {[%clk 0:00:02]}  h3 {[%clk 0:00:10]} 51. Rf1 {[%clk 0:00:03]}  Bg3 {[%clk 0:00:06]} 52. Rg1 {[%clk 0:00:02]}  Kh4 {[%clk 0:00:07]} 53. Bc6 {[%clk 0:00:03]}  g5 {[%clk 0:00:06]} 54. Bb7 {[%clk 0:00:03]}  Rh2# {[%clk 0:00:07]} 0-1


[Site "https://www.chess.com"]

[Event "Titled Tuesday Blitz March 28 Late 2023"]
[White "Rasulov, Vugar"]
[Black "Becerra, Juan David"]
[WhiteFideId "13402390"]
[BlackFideId "4404998"]
[WhiteElo "2509"]
[BlackElo "2282"]
[Result "1-0"]
[Round "01"]
[TimeControl "180+2"]
[Date "2023.03.28"]
[WhiteClock "0:01:22"]
[BlackClock "0:00:10"]

1. e4 {[%clk 0:03:00]}  e5 {[%clk 0:02:36]} 2. Nf3 {[%clk 0:03:00]}  Nc6 {[%clk 0:02:36]} 3. Bb5 {[%clk 0:03:00]}  f5 {[%clk 0:02:35]} 4. d3 {[%clk 0:02:59]}  fxe4 {[%clk 0:02:34]} 5. dxe4 {[%clk 0:03:00]}  d6 {[%clk 0:02:32]} 6. O-O {[%clk 0:02:59]}  Nf6 {[%clk 0:02:31]} 7. Nc3 {[%clk 0:02:56]}  Be7 {[%clk 0:02:30]} 8. Bg5 {[%clk 0:02:46]}  Be6 {[%clk 0:02:26]} 9. Bxf6 {[%clk 0:02:45]}  Bxf6 {[%clk 0:02:25]} 10. Nd5 {[%clk 0:02:46]}  O-O {[%clk 0:02:22]} 11. c3 {[%clk 0:02:46]}  a6 {[%clk 0:02:04]} 12. Ba4 {[%clk 0:02:43]}  Kh8 {[%clk 0:02:02]} 13. Qd3 {[%clk 0:02:39]}  Qd7 {[%clk 0:01:57]} 14. Rad1 {[%clk 0:02:36]}  Qf7 {[%clk 0:01:48]} 15. b4 {[%clk 0:02:31]}  Bg4 {[%clk 0:01:25]} 16. Bb3 {[%clk 0:02:28]}  Qh5 {[%clk 0:01:17]} 17. Nxc7 {[%clk 0:02:25]}  Be7 {[%clk 0:01:03]} 18. Nd2 {[%clk 0:02:15]}  Be2 {[%clk 0:00:57]} 19. Qh3 {[%clk 0:02:06]}  Qxh3 {[%clk 0:00:46]} 20. gxh3 {[%clk 0:02:07]}  Bxd1 {[%clk 0:00:46]} 21. Rxd1 {[%clk 0:01:59]}  Rac8 {[%clk 0:00:45]} 22. Nd5 {[%clk 0:01:57]}  Bg5 {[%clk 0:00:44]} 23. Nf1 {[%clk 0:01:55]}  Ne7 {[%clk 0:00:41]} 24. Nxe7 {[%clk 0:01:49]}  Bxe7 {[%clk 0:00:41]} 25. Rd3 {[%clk 0:01:48]}  Rf6 {[%clk 0:00:33]} 26. Ne3 {[%clk 0:01:42]}  Rcf8 {[%clk 0:00:29]} 27. Nf5 {[%clk 0:01:38]}  Bd8 {[%clk 0:00:25]} 28. Rxd6 {[%clk 0:01:29]}  Rxd6 {[%clk 0:00:21]} 29. Nxd6 {[%clk 0:01:30]}  g6 {[%clk 0:00:21]} 30. Kg2 {[%clk 0:01:23]}  b5 {[%clk 0:00:11]} 31. Nf7+ {[%clk 0:01:23]}  Kg7 {[%clk 0:00:10]} 32. Nxe5 {[%clk 0:01:23]}  Bf6 {[%clk 0:00:10]} 33. Nd7 {[%clk 0:01:21]}  Rd8 {[%clk 0:00:10]} 34. Nc5 {[%clk 0:01:22]}  Bxc3 {[%clk 0:00:10]} 35. Ne6+ {[%clk 0:01:22]} 1-0


[Site "https://www.chess.com"]

[Event "Titled Tuesday Blitz March 28 Late 2023"]
[White "Mazurkiewicz, Michal"]
[Black "Drygalov, Sergey"]
[WhiteFideId "1124943"]
[BlackFideId "24171743"]
[WhiteElo "2054"]
[BlackElo "2533"]
[Result "0-1"]
[Round "01"]
[TimeControl "180+2"]
[Date "2023.03.28"]
[WhiteClock "0:00:03"]
[BlackClock "0:00:13"]

1. e4 {[%clk 0:02:57]}  c5 {[%clk 0:02:59]} 2. Nf3 {[%clk 0:02:57]}  d6 {[%clk 0:03:00]} 3. g3 {[%clk 0:02:56]}  Nf6 {[%clk 0:03:00]} 4. d3 {[%clk 0:02:56]}  g6 {[%clk 0:03:00]} 5. Bg2 {[%clk 0:02:56]}  Bg7 {[%clk 0:03:01]} 6. O-O {[%clk 0:02:56]}  O-O {[%clk 0:03:01]} 7. Re1 {[%clk 0:02:52]}  Nc6 {[%clk 0:03:02]} 8. e5 {[%clk 0:02:52]}  Nd5 {[%clk 0:03:00]} 9. exd6 {[%clk 0:02:52]}  Qxd6 {[%clk 0:03:00]} 10. Nfd2 {[%clk 0:02:51]}  b6 {[%clk 0:02:48]} 11. Nc4 {[%clk 0:02:45]}  Qd8 {[%clk 0:02:48]} 12. a4 {[%clk 0:02:39]}  h6 {[%clk 0:02:47]} 13. c3 {[%clk 0:02:39]}  e5 {[%clk 0:02:46]} 14. Nbd2 {[%clk 0:02:23]}  Be6 {[%clk 0:02:46]} 15. Ne4 {[%clk 0:02:22]}  Qd7 {[%clk 0:02:46]} 16. Qb3 {[%clk 0:02:18]}  f5 {[%clk 0:02:33]} 17. Ned6 {[%clk 0:02:18]}  Rfd8 {[%clk 0:02:19]} 18. f4 {[%clk 0:02:03]}  exf4 {[%clk 0:02:07]} 19. Nxb6 {[%clk 0:01:17]}  Qxd6 {[%clk 0:02:01]} 20. Rxe6 {[%clk 0:01:17]}  Qxe6 {[%clk 0:02:01]} 21. Bxd5 {[%clk 0:01:16]}  Rxd5 {[%clk 0:02:00]} 22. Qxd5 {[%clk 0:01:17]}  Re8 {[%clk 0:01:54]} 23. Qxe6+ {[%clk 0:01:07]}  Rxe6 {[%clk 0:01:55]} 24. Nd7 {[%clk 0:01:03]}  fxg3 {[%clk 0:01:48]} 25. hxg3 {[%clk 0:00:51]}  Re2 {[%clk 0:01:34]} 26. Nxc5 {[%clk 0:00:47]}  Ne5 {[%clk 0:01:34]} 27. Bf4 {[%clk 0:00:44]}  Nf3+ {[%clk 0:01:35]} 28. Kf1 {[%clk 0:00:44]}  Rh2 {[%clk 0:01:35]} 29. Rd1 {[%clk 0:00:26]}  g5 {[%clk 0:01:35]} 30. Be3 {[%clk 0:00:22]}  h5 {[%clk 0:01:31]} 31. d4 {[%clk 0:00:14]}  h4 {[%clk 0:00:56]} 32. gxh4 {[%clk 0:00:15]}  gxh4 {[%clk 0:00:56]} 33. d5 {[%clk 0:00:15]}  h3 {[%clk 0:00:53]} 34. Bf4 {[%clk 0:00:11]}  Rxb2 {[%clk 0:00:49]} 35. d6 {[%clk 0:00:11]}  h2 {[%clk 0:00:46]} 36. Bxh2 {[%clk 0:00:11]}  Nxh2+ {[%clk 0:00:46]} 37. Kg1 {[%clk 0:00:12]}  Nf3+ {[%clk 0:00:46]} 38. Kf1 {[%clk 0:00:12]}  Bxc3 {[%clk 0:00:29]} 39. d7 {[%clk 0:00:12]}  Bf6 {[%clk 0:00:30]} 40. d8=Q+ {[%clk 0:00:10]}  Bxd8 {[%clk 0:00:30]} 41. Rxd8+ {[%clk 0:00:11]}  Kf7 {[%clk 0:00:30]} 42. Rd3 {[%clk 0:00:08]}  Ne5 {[%clk 0:00:29]} 43. Rd5 {[%clk 0:00:09]}  Rb1+ {[%clk 0:00:22]} 44. Ke2 {[%clk 0:00:08]}  Rb2+ {[%clk 0:00:22]} 45. Kd1 {[%clk 0:00:07]}  Nc4 {[%clk 0:00:18]} 46. Rxf5+ {[%clk 0:00:07]}  Ke7 {[%clk 0:00:19]} 47. Rf4 {[%clk 0:00:06]}  Ne3+ {[%clk 0:00:17]} 48. Kc1 {[%clk 0:00:06]}  Rc2+ {[%clk 0:00:17]} 49. Kb1 {[%clk 0:00:06]}  Re2 {[%clk 0:00:17]} 50. Re4+ {[%clk 0:00:06]}  Kd6 {[%clk 0:00:17]} 51. Nb3 {[%clk 0:00:05]}  Re1+ {[%clk 0:00:16]} 52. Nc1 {[%clk 0:00:05]}  Kd5 {[%clk 0:00:15]} 53. Re8 {[%clk 0:00:05]}  Kd4 {[%clk 0:00:15]} 54. Rd8+ {[%clk 0:00:04]}  Kc3 {[%clk 0:00:15]} 55. Rc8+ {[%clk 0:00:04]}  Nc4 {[%clk 0:00:15]} 56. a5 {[%clk 0:00:03]}  a6 {[%clk 0:00:14]} 57. Rc6 {[%clk 0:00:03]}  Rh1 {[%clk 0:00:13]} 58. Rxa6 {[%clk 0:00:03]}  Nd2+ {[%clk 0:00:13]} 59. Ka2 {[%clk 0:00:03]}  Rxc1 {[%clk 0:00:14]} 60. Rc6+ {[%clk 0:00:04]}  Nc4 {[%clk 0:00:14]} 61. a6 {[%clk 0:00:04]}  Rc2+ {[%clk 0:00:15]} 62. Ka1 {[%clk 0:00:04]}  Rh2 {[%clk 0:00:15]} 63. a7 {[%clk 0:00:04]}  Rh8 {[%clk 0:00:15]} 64. Ra6 {[%clk 0:00:05]}  Ra8 {[%clk 0:00:15]} 65. Kb1 {[%clk 0:00:06]}  Kb4 {[%clk 0:00:15]} 66. Kc2 {[%clk 0:00:06]}  Kb5 {[%clk 0:00:16]} 67. Ra2 {[%clk 0:00:06]}  Na5 {[%clk 0:00:16]} 68. Kd3 {[%clk 0:00:06]}  Rxa7 {[%clk 0:00:15]} 69. Rb2+ {[%clk 0:00:06]}  Kc5 {[%clk 0:00:16]} 70. Rh2 {[%clk 0:00:07]}  Nb3 {[%clk 0:00:10]} 71. Rh5+ {[%clk 0:00:07]}  Kb4 {[%clk 0:00:10]} 72. Rh4+ {[%clk 0:00:08]}  Kb5 {[%clk 0:00:10]} 73. Rh5+ {[%clk 0:00:08]}  Nc5+ {[%clk 0:00:11]} 74. Kd4 {[%clk 0:00:08]}  Rd7+ {[%clk 0:00:11]} 75. Kc3 {[%clk 0:00:09]}  Rd3+ {[%clk 0:00:12]} 76. Kc2 {[%clk 0:00:09]}  Rf3 {[%clk 0:00:12]} 77. Rh4 {[%clk 0:00:09]}  Ne6 {[%clk 0:00:12]} 78. Rg4 {[%clk 0:00:07]}  Kc5 {[%clk 0:00:11]} 79. Rh4 {[%clk 0:00:07]}  Nd4+ {[%clk 0:00:12]} 80. Kd2 {[%clk 0:00:08]}  Kc4 {[%clk 0:00:12]} 81. Rg4 {[%clk 0:00:07]}  Ra3 {[%clk 0:00:11]} 82. Rg8 {[%clk 0:00:07]}  Rd3+ {[%clk 0:00:11]} 83. Ke1 {[%clk 0:00:07]}  Rf3 {[%clk 0:00:11]} 84. Rc8+ {[%clk 0:00:04]}  Kd3 {[%clk 0:00:12]} 85. Ra8 {[%clk 0:00:04]}  Nc2+ {[%clk 0:00:12]} 86. Kd1 {[%clk 0:00:03]}  Rf1# {[%clk 0:00:13]} 0-1


[Site "https://www.chess.com"]

[Event "Titled Tuesday Blitz March 28 Late 2023"]
[White "Movahed, Sina"]
[Black "Mujumdar, Sameer"]
[WhiteFideId "42520835"]
[BlackFideId "2029707"]
[WhiteElo "2225"]
[BlackElo "2104"]
[Result "1-0"]
[Round "01"]
[TimeControl "180+2"]
[Date "2023.03.28"]
[WhiteClock "0:00:46"]
[BlackClock "0:00:13"]

1. e4 {[%clk 0:02:59]}  c5 {[%clk 0:02:49]} 2. Nf3 {[%clk 0:02:59]}  d6 {[%clk 0:02:47]} 3. d4 {[%clk 0:02:59]}  cxd4 {[%clk 0:02:47]} 4. Nxd4 {[%clk 0:02:59]}  Nf6 {[%clk 0:02:47]} 5. Nc3 {[%clk 0:03:00]}  a6 {[%clk 0:02:45]} 6. Bg5 {[%clk 0:03:01]}  Nbd7 {[%clk 0:02:44]} 7. Bc4 {[%clk 0:03:00]}  e6 {[%clk 0:02:41]} 8. Qd2 {[%clk 0:03:00]}  Qc7 {[%clk 0:02:41]} 9. Bb3 {[%clk 0:02:59]}  Nc5 {[%clk 0:02:41]} 10. Bxf6 {[%clk 0:02:49]}  gxf6 {[%clk 0:02:38]} 11. O-O {[%clk 0:02:48]}  b5 {[%clk 0:02:35]} 12. Rae1 {[%clk 0:02:46]}  Bb7 {[%clk 0:02:32]} 13. f4 {[%clk 0:02:46]}  Rg8 {[%clk 0:02:13]} 14. f5 {[%clk 0:02:43]}  Nxb3 {[%clk 0:02:11]} 15. cxb3 {[%clk 0:02:34]}  e5 {[%clk 0:02:09]} 16. Nf3 {[%clk 0:02:30]}  b4 {[%clk 0:01:57]} 17. Na4 {[%clk 0:01:54]}  Rg4 {[%clk 0:01:44]} 18. Qd3 {[%clk 0:01:41]}  Bc6 {[%clk 0:01:33]} 19. h3 {[%clk 0:01:35]}  Rg8 {[%clk 0:01:26]} 20. Kh1 {[%clk 0:01:26]}  Qb7 {[%clk 0:01:13]} 21. Qe3 {[%clk 0:01:23]}  Rb8 {[%clk 0:00:59]} 22. Rf2 {[%clk 0:01:03]}  d5 {[%clk 0:00:56]} 23. Nxe5 {[%clk 0:00:58]}  Bxa4 {[%clk 0:00:46]} 24. exd5 {[%clk 0:00:53]}  fxe5 {[%clk 0:00:28]} 25. Qxe5+ {[%clk 0:00:54]}  Kd8 {[%clk 0:00:29]} 26. bxa4 {[%clk 0:00:49]}  Bc5 {[%clk 0:00:15]} 27. Rc2 {[%clk 0:00:46]}  Rc8 {[%clk 0:00:15]} 28. Rxc5 {[%clk 0:00:45]}  Rxc5 {[%clk 0:00:13]} 29. Qd6+ {[%clk 0:00:45]}  Kc8 {[%clk 0:00:13]} 30. Qxc5+ {[%clk 0:00:46]}  Kb8 {[%clk 0:00:13]} 31. Re7 {[%clk 0:00:46]} 1-0


[Site "https://www.chess.com"]

[Event "Titled Tuesday Blitz March 28 Late 2023"]
[White "Nazari, Arad"]
[Black "Hoffmann, Asa"]
[WhiteFideId "12577324"]
[BlackFideId "2001470"]
[WhiteElo "2313"]
[BlackElo "2117"]
[Result "1-0"]
[Round "01"]
[TimeControl "180+2"]
[Date "2023.03.28"]
[WhiteClock "0:00:49"]
[BlackClock "0:00:32"]

1. e4 {[%clk 0:02:59]}  d6 {[%clk 0:02:54]} 2. d4 {[%clk 0:02:59]}  Nf6 {[%clk 0:02:51]} 3. Nc3 {[%clk 0:03:00]}  c6 {[%clk 0:02:50]} 4. Nf3 {[%clk 0:02:54]}  Bg4 {[%clk 0:02:50]} 5. Be2 {[%clk 0:02:53]}  e6 {[%clk 0:02:50]} 6. O-O {[%clk 0:02:52]}  d5 {[%clk 0:02:49]} 7. e5 {[%clk 0:02:52]}  Nfd7 {[%clk 0:02:49]} 8. Nb1 {[%clk 0:02:52]}  c5 {[%clk 0:02:48]} 9. c3 {[%clk 0:02:53]}  Nc6 {[%clk 0:02:48]} 10. Nbd2 {[%clk 0:02:47]}  Qb6 {[%clk 0:02:46]} 11. h3 {[%clk 0:02:46]}  Bh5 {[%clk 0:02:45]} 12. Nb3 {[%clk 0:02:46]}  Be7 {[%clk 0:02:39]} 13. Re1 {[%clk 0:02:31]}  O-O {[%clk 0:02:36]} 14. Qc2 {[%clk 0:01:32]}  Bg6 {[%clk 0:02:29]} 15. Qd1 {[%clk 0:01:33]}  Rac8 {[%clk 0:02:26]} 16. Bf1 {[%clk 0:01:26]}  cxd4 {[%clk 0:02:23]} 17. Nbxd4 {[%clk 0:01:23]}  Nxd4 {[%clk 0:02:15]} 18. Nxd4 {[%clk 0:01:24]}  Bc5 {[%clk 0:02:13]} 19. b3 {[%clk 0:01:14]}  Bxd4 {[%clk 0:02:10]} 20. cxd4 {[%clk 0:01:11]}  Nb8 {[%clk 0:01:55]} 21. Ba3 {[%clk 0:01:10]}  Rfe8 {[%clk 0:01:55]} 22. Bc5 {[%clk 0:01:11]}  Rxc5 {[%clk 0:01:37]} 23. dxc5 {[%clk 0:01:10]}  Qxc5 {[%clk 0:01:37]} 24. Rc1 {[%clk 0:01:11]}  Qa3 {[%clk 0:01:34]} 25. Qd2 {[%clk 0:01:11]}  Nc6 {[%clk 0:01:32]} 26. Bb5 {[%clk 0:01:11]}  Rc8 {[%clk 0:01:27]} 27. Bxc6 {[%clk 0:01:03]}  bxc6 {[%clk 0:01:24]} 28. b4 {[%clk 0:01:02]}  h6 {[%clk 0:01:12]} 29. Re3 {[%clk 0:01:02]}  Qa4 {[%clk 0:01:08]} 30. Rc5 {[%clk 0:01:02]}  Rd8 {[%clk 0:00:52]} 31. Ra5 {[%clk 0:00:57]}  Qxa5 {[%clk 0:00:43]} 32. bxa5 {[%clk 0:00:56]}  c5 {[%clk 0:00:43]} 33. Rb3 {[%clk 0:00:55]}  c4 {[%clk 0:00:41]} 34. Rc3 {[%clk 0:00:51]}  a6 {[%clk 0:00:33]} 35. Rxc4 {[%clk 0:00:49]}  Rb8 {[%clk 0:00:32]} 36. Rc6 {[%clk 0:00:49]} 1-0


[Site "https://www.chess.com"]

[Event "Titled Tuesday Blitz March 28 Late 2023"]
[White "reevecanada"]
[Black "Bernadskiy, Vitaliy"]
[BlackFideId "14100371"]
[WhiteElo "2436"]
[BlackElo "2488"]
[Result "0-1"]
[Round "01"]
[TimeControl "180+2"]
[Date "2023.03.28"]
[WhiteClock "0:00:19"]
[BlackClock "0:01:22"]

1. e4 {[%clk 0:02:58]}  c5 {[%clk 0:02:59]} 2. Nf3 {[%clk 0:02:55]}  Nc6 {[%clk 0:03:00]} 3. Bb5 {[%clk 0:02:54]}  e6 {[%clk 0:02:58]} 4. Bxc6 {[%clk 0:02:50]}  bxc6 {[%clk 0:02:57]} 5. O-O {[%clk 0:02:50]}  Ne7 {[%clk 0:02:57]} 6. d4 {[%clk 0:02:49]}  cxd4 {[%clk 0:02:56]} 7. Qxd4 {[%clk 0:02:50]}  Ng6 {[%clk 0:02:54]} 8. Nc3 {[%clk 0:02:47]}  c5 {[%clk 0:02:50]} 9. Qd3 {[%clk 0:02:37]}  Be7 {[%clk 0:02:50]} 10. g3 {[%clk 0:02:37]}  O-O {[%clk 0:02:49]} 11. h4 {[%clk 0:02:36]}  Bf6 {[%clk 0:02:49]} 12. h5 {[%clk 0:02:33]}  Ne5 {[%clk 0:02:49]} 13. Nxe5 {[%clk 0:02:32]}  Bxe5 {[%clk 0:02:50]} 14. Be3 {[%clk 0:02:31]}  d6 {[%clk 0:02:32]} 15. Rad1 {[%clk 0:02:27]}  Qb6 {[%clk 0:02:26]} 16. f4 {[%clk 0:02:23]}  Ba6 {[%clk 0:02:25]} 17. Na4 {[%clk 0:01:55]}  Qc6 {[%clk 0:01:49]} 18. Qa3 {[%clk 0:01:25]}  Bxf1 {[%clk 0:01:35]} 19. fxe5 {[%clk 0:01:22]}  Bb5 {[%clk 0:01:33]} 20. Rxd6 {[%clk 0:01:10]}  Qxe4 {[%clk 0:01:32]} 21. Nxc5 {[%clk 0:01:05]}  Qxe5 {[%clk 0:01:31]} 22. Rd4 {[%clk 0:00:53]}  Rad8 {[%clk 0:01:28]} 23. Rg4 {[%clk 0:00:46]}  Rd1+ {[%clk 0:01:26]} 24. Kh2 {[%clk 0:00:45]}  Qxh5+ {[%clk 0:01:25]} 25. Rh4 {[%clk 0:00:36]}  Bc6 {[%clk 0:01:25]} 26. Bg1 {[%clk 0:00:25]}  Qe2+ {[%clk 0:01:21]} 27. Kh3 {[%clk 0:00:22]}  Qf1+ {[%clk 0:01:21]} 28. Kg4 {[%clk 0:00:19]}  Qf5# {[%clk 0:01:22]} 0-1


[Site "https://www.chess.com"]

[Event "Titled Tuesday Blitz March 28 Late 2023"]
[White "Pakleza, Zbigniew"]
[Black "Dzida, Kamil"]
[WhiteFideId "1119290"]
[BlackFideId "21828652"]
[WhiteElo "2410"]
[BlackElo "2139"]
[Result "1-0"]
[Round "01"]
[TimeControl "180+2"]
[Date "2023.03.28"]
[WhiteClock "0:00:23"]
[BlackClock "0:00:18"]

1. d4 {[%clk 0:03:00]}  Nf6 {[%clk 0:02:57]} 2. Nf3 {[%clk 0:02:59]}  e6 {[%clk 0:02:54]} 3. Bf4 {[%clk 0:02:58]}  c5 {[%clk 0:02:52]} 4. c3 {[%clk 0:02:58]}  Nc6 {[%clk 0:02:52]} 5. e3 {[%clk 0:02:56]}  d5 {[%clk 0:02:52]} 6. Nbd2 {[%clk 0:02:54]}  Bd6 {[%clk 0:02:51]} 7. Bg3 {[%clk 0:02:53]}  O-O {[%clk 0:02:48]} 8. Bd3 {[%clk 0:02:53]}  b6 {[%clk 0:02:47]} 9. Ne5 {[%clk 0:02:51]}  Ne7 {[%clk 0:02:38]} 10. f4 {[%clk 0:02:50]}  Nf5 {[%clk 0:02:38]} 11. Bf2 {[%clk 0:02:49]}  Be7 {[%clk 0:02:38]} 12. Qc2 {[%clk 0:02:40]}  Nd6 {[%clk 0:01:56]} 13. Bh4 {[%clk 0:02:38]}  Nfe4 {[%clk 0:01:52]} 14. Bxe7 {[%clk 0:02:33]}  Qxe7 {[%clk 0:01:52]} 15. Nxe4 {[%clk 0:02:23]}  Nxe4 {[%clk 0:01:48]} 16. Bxe4 {[%clk 0:02:24]}  dxe4 {[%clk 0:01:49]} 17. Qxe4 {[%clk 0:02:25]}  Bb7 {[%clk 0:01:50]} 18. Qc2 {[%clk 0:02:25]}  Rfd8 {[%clk 0:01:30]} 19. O-O {[%clk 0:02:21]}  Rac8 {[%clk 0:01:30]} 20. Rad1 {[%clk 0:02:12]}  f6 {[%clk 0:01:07]} 21. Nf3 {[%clk 0:02:08]}  Qf7 {[%clk 0:01:00]} 22. a3 {[%clk 0:01:54]}  Qh5 {[%clk 0:00:58]} 23. e4 {[%clk 0:01:50]}  cxd4 {[%clk 0:00:56]} 24. Nxd4 {[%clk 0:01:46]}  e5 {[%clk 0:00:49]} 25. Nf5 {[%clk 0:01:22]}  Rxd1 {[%clk 0:00:30]} 26. Qxd1 {[%clk 0:01:16]}  Qxd1 {[%clk 0:00:18]} 27. Rxd1 {[%clk 0:01:17]}  Kf8 {[%clk 0:00:18]} 28. Rd7 {[%clk 0:00:51]}  Bxe4 {[%clk 0:00:17]} 29. Nd6 {[%clk 0:00:51]}  Bc6 {[%clk 0:00:13]} 30. Rf7+ {[%clk 0:00:29]}  Kg8 {[%clk 0:00:14]} 31. Rxa7 {[%clk 0:00:30]}  Rd8 {[%clk 0:00:14]} 32. fxe5 {[%clk 0:00:29]}  fxe5 {[%clk 0:00:14]} 33. Nf5 {[%clk 0:00:28]}  Rd1+ {[%clk 0:00:13]} 34. Kf2 {[%clk 0:00:28]}  Rd2+ {[%clk 0:00:13]} 35. Ke3 {[%clk 0:00:29]}  Rxg2 {[%clk 0:00:14]} 36. Ne7+ {[%clk 0:00:29]}  Kf7 {[%clk 0:00:13]} 37. Nxc6+ {[%clk 0:00:30]}  Kg6 {[%clk 0:00:14]} 38. Nxe5+ {[%clk 0:00:27]}  Kf5 {[%clk 0:00:14]} 39. Nd3 {[%clk 0:00:27]}  Rxh2 {[%clk 0:00:15]} 40. Rxg7 {[%clk 0:00:27]}  Rh3+ {[%clk 0:00:15]} 41. Kd4 {[%clk 0:00:26]}  Rh4+ {[%clk 0:00:15]} 42. Kd5 {[%clk 0:00:25]}  Rh3 {[%clk 0:00:16]} 43. Rf7+ {[%clk 0:00:23]}  Kg6 {[%clk 0:00:17]} 44. Nf4+ {[%clk 0:00:22]}  Kg5 {[%clk 0:00:18]} 45. Nxh3+ {[%clk 0:00:23]} 1-0


[Site "https://www.chess.com"]